[Event "*** Titled Tuesday Blitz"]
[Site "Chess.com"]
[Date "2020.11.24"]
[Round "4"]
[White "Marina_Chess_Rus"]
[Black "Dave_ChessMate"]
[Result "1/2-1/2"]
[WhiteElo "2301"]
[BlackElo "2460"]
[TimeControl "180+1"]
[EndTime "10:57:15 PST"]
[Termination "Game drawn - insufficient material"]

1. d4 {[%clk 0:03:00.9]} 1... Nf6 {[%clk 0:03:00]} 2. Nf3 {[%clk 0:02:58.6]}
2... e6 {[%clk 0:03:00]} 3. c4 {[%clk 0:02:57.6]} 3... c5 {[%clk 0:03:00.1]} 4.
Nc3 {[%clk 0:02:55.8]} 4... d5 {[%clk 0:02:57]} 5. cxd5 {[%clk 0:02:53.3]} 5...
exd5 {[%clk 0:02:56.7]} 6. Bg5 {[%clk 0:02:53.3]} 6... cxd4 {[%clk 0:02:54.6]}
7. Nxd4 {[%clk 0:02:47.3]} 7... Be7 {[%clk 0:02:49.4]} 8. g3 {[%clk 0:02:44.8]}
8... h6 {[%clk 0:02:48]} 9. Bf4 {[%clk 0:02:28]} 9... Nc6 {[%clk 0:02:47.2]} 10.
Bg2 {[%clk 0:02:27]} 10... Qb6 {[%clk 0:02:35.3]} 11. Ndb5 {[%clk 0:02:06.1]}
11... O-O {[%clk 0:02:17.8]} 12. O-O {[%clk 0:01:36.6]} 12... Be6 {[%clk
0:02:06.8]} 13. Nc7 {[%clk 0:01:32.1]} 13... Rad8 {[%clk 0:02:04.2]} 14. Na4
{[%clk 0:01:24.3]} 14... Qa5 {[%clk 0:01:42.2]} 15. Nxe6 {[%clk 0:01:23.4]}
15... fxe6 {[%clk 0:01:41.3]} 16. Bh3 {[%clk 0:01:24.1]} 16... Kf7 {[%clk
0:01:26.4]} 17. Rc1 {[%clk 0:01:20]} 17... e5 {[%clk 0:01:25.6]} 18. Bd2 {[%clk
0:01:19.6]} 18... Qc7 {[%clk 0:01:18.1]} 19. Qb3 {[%clk 0:01:18.4]} 19... Qd6
{[%clk 0:01:00]} 20. Be3 {[%clk 0:00:57.8]} 20... b6 {[%clk 0:00:44.4]} 21. Rfd1
{[%clk 0:00:54.9]} 21... Na5 {[%clk 0:00:44.4]} 22. Qb5 {[%clk 0:00:38.9]} 22...
g5 {[%clk 0:00:33.9]} 23. Bd2 {[%clk 0:00:37.3]} 23... Nc4 {[%clk 0:00:31.6]}
24. b3 {[%clk 0:00:28.5]} 24... Nxd2 {[%clk 0:00:29.6]} 25. Rxd2 {[%clk
0:00:28.7]} 25... g4 {[%clk 0:00:26]} 26. Bg2 {[%clk 0:00:28.6]} 26... e4 {[%clk
0:00:25.2]} 27. Rc6 {[%clk 0:00:26.7]} 27... Qb4 {[%clk 0:00:18.6]} 28. Qxb4
{[%clk 0:00:24.2]} 28... Bxb4 {[%clk 0:00:19.5]} 29. Rc7+ {[%clk 0:00:24.1]}
29... Kg6 {[%clk 0:00:17.5]} 30. Rdc2 {[%clk 0:00:23.5]} 30... d4 {[%clk
0:00:14.7]} 31. Rxa7 {[%clk 0:00:19.4]} 31... d3 {[%clk 0:00:14.5]} 32. exd3
{[%clk 0:00:19.7]} 32... exd3 {[%clk 0:00:15.4]} 33. Rc1 {[%clk 0:00:20.2]}
33... d2 {[%clk 0:00:15.8]} 34. Rd1 {[%clk 0:00:20.4]} 34... Rfe8 {[%clk
0:00:16.3]} 35. Nb2 {[%clk 0:00:19.5]} 35... Re1+ {[%clk 0:00:14.9]} 36. Bf1
{[%clk 0:00:19.6]} 36... Rde8 {[%clk 0:00:14.3]} 37. Rd7 {[%clk 0:00:17.3]}
37... Rxd1 {[%clk 0:00:11.9]} 38. Nxd1 {[%clk 0:00:17.6]} 38... Re1 {[%clk
0:00:12.8]} 39. Ne3 {[%clk 0:00:17.6]} 39... Ne4 {[%clk 0:00:08]} 40. Rd8 {[%clk
0:00:16.9]} 40... Ng5 {[%clk 0:00:05.4]} 41. Kg2 {[%clk 0:00:16.8]} 41... Nf3
{[%clk 0:00:05]} 42. Nxg4 {[%clk 0:00:14.1]} 42... d1=Q {[%clk 0:00:03.3]} 43.
Rxd1 {[%clk 0:00:13.8]} 43... Rxd1 {[%clk 0:00:04.2]} 44. Be2 {[%clk 0:00:13.9]}
44... Ra1 {[%clk 0:00:03.7]} 45. Kxf3 {[%clk 0:00:13.5]} 45... Rxa2 {[%clk
0:00:04]} 46. Ne5+ {[%clk 0:00:14.1]} 46... Kg7 {[%clk 0:00:03.5]} 47. Nc6
{[%clk 0:00:14.7]} 47... Bc5 {[%clk 0:00:03.6]} 48. h4 {[%clk 0:00:14.8]} 48...
h5 {[%clk 0:00:03.3]} 49. Ne5 {[%clk 0:00:14.3]} 49... Rb2 {[%clk 0:00:03.5]}
50. Nd3 {[%clk 0:00:14.4]} 50... Rxb3 {[%clk 0:00:03.3]} 51. Ke4 {[%clk
0:00:14.8]} 51... Ra3 {[%clk 0:00:02.8]} 52. Nxc5 {[%clk 0:00:14.7]} 52... bxc5
{[%clk 0:00:03.7]} 53. Bc4 {[%clk 0:00:14.9]} 53... Rc3 {[%clk 0:00:03]} 54. Kd5
{[%clk 0:00:14.5]} 54... Rc2 {[%clk 0:00:03.2]} 55. f3 {[%clk 0:00:14.5]} 55...
Rg2 {[%clk 0:00:03.4]} 56. Kxc5 {[%clk 0:00:14.3]} 56... Rxg3 {[%clk 0:00:03.9]}
57. Kd4 {[%clk 0:00:14.3]} 57... Rxf3 {[%clk 0:00:03.6]} 58. Be6 {[%clk
0:00:13.9]} 58... Rf4+ {[%clk 0:00:03.7]} 59. Ke3 {[%clk 0:00:14.5]} 59... Rxh4
{[%clk 0:00:04.6]} 60. Kf3 {[%clk 0:00:14.5]} 60... Rb4 {[%clk 0:00:05.3]} 61.
Kg3 {[%clk 0:00:14.6]} 61... Kh6 {[%clk 0:00:05.8]} 62. Kh3 {[%clk 0:00:14.8]}
62... Kg5 {[%clk 0:00:06.3]} 63. Bd7 {[%clk 0:00:14.8]} 63... h4 {[%clk
0:00:06.8]} 64. Be6 {[%clk 0:00:14.6]} 64... Ra4 {[%clk 0:00:07.3]} 65. Bd5
{[%clk 0:00:14.3]} 65... Ra3+ {[%clk 0:00:08.2]} 66. Kh2 {[%clk 0:00:14.5]}
66... Kf4 {[%clk 0:00:08.2]} 67. Be6 {[%clk 0:00:14.8]} 67... Kg5 {[%clk
0:00:05.9]} 68. Bd7 {[%clk 0:00:14.7]} 68... Rc3 {[%clk 0:00:03.5]} 69. Be6
{[%clk 0:00:14.5]} 69... Re3 {[%clk 0:00:04.4]} 70. Bd7 {[%clk 0:00:14.5]} 70...
Kf4 {[%clk 0:00:04.7]} 71. Be6 {[%clk 0:00:14.2]} 71... Rg3 {[%clk 0:00:05.2]}
72. Bc8 {[%clk 0:00:13.3]} 72... Kf3 {[%clk 0:00:05.1]} 73. Bb7+ {[%clk
0:00:12.8]} 73... Kf2 {[%clk 0:00:05.3]} 74. Bc8 {[%clk 0:00:13.4]} 74... Ra3
{[%clk 0:00:05.4]} 75. Bd7 {[%clk 0:00:13.5]} 75... Ke3 {[%clk 0:00:04.9]} 76.
Kh3 {[%clk 0:00:11.8]} 76... Rd3 {[%clk 0:00:05.6]} 77. Be6 {[%clk 0:00:10.5]}
77... Rd4 {[%clk 0:00:05.8]} 78. Bg4 {[%clk 0:00:08.9]} 78... Kf2 {[%clk
0:00:04.1]} 79. Kxh4 {[%clk 0:00:08.6]} 79... Ke3 {[%clk 0:00:03.9]} 80. Kg3
{[%clk 0:00:08.3]} 80... Rxg4+ {[%clk 0:00:03.8]} 81. Kxg4 {[%clk 0:00:08.1]}
1/2-1/2

[Event "*** Titled Tuesday Blitz"]
[Site "Chess.com"]
[Date "2020.11.24"]
[Round "4"]
[White "MPGM"]
[Black "djano"]
[Result "1-0"]
[WhiteElo "2619"]
[BlackElo "2466"]
[TimeControl "180+1"]
[EndTime "10:57:19 PST"]
[Termination "MPGM won on time"]

1. d4 {[%clk 0:03:00.9]} 1... d5 {[%clk 0:02:59]} 2. c4 {[%clk 0:02:59.6]} 2...
c6 {[%clk 0:02:59.5]} 3. Nf3 {[%clk 0:02:59.5]} 3... Nf6 {[%clk 0:02:58.3]} 4.
g3 {[%clk 0:02:59.4]} 4... g6 {[%clk 0:02:55.6]} 5. Bg2 {[%clk 0:02:59.2]} 5...
Bg7 {[%clk 0:02:56.1]} 6. O-O {[%clk 0:02:59.6]} 6... O-O {[%clk 0:02:56.7]} 7.
Qb3 {[%clk 0:02:59]} 7... Qb6 {[%clk 0:02:49.5]} 8. Nc3 {[%clk 0:02:53.4]} 8...
Rd8 {[%clk 0:02:46.7]} 9. h3 {[%clk 0:02:45.7]} 9... dxc4 {[%clk 0:02:38]} 10.
Qxc4 {[%clk 0:02:46.6]} 10... Be6 {[%clk 0:02:37.9]} 11. Qa4 {[%clk 0:02:46]}
11... a5 {[%clk 0:02:25.3]} 12. Qc2 {[%clk 0:02:38.6]} 12... Na6 {[%clk
0:02:17.4]} 13. a3 {[%clk 0:02:39]} 13... Bb3 {[%clk 0:02:13.6]} 14. Qb1 {[%clk
0:02:30.6]} 14... c5 {[%clk 0:02:09.6]} 15. dxc5 {[%clk 0:02:25.7]} 15... Nxc5
{[%clk 0:02:07]} 16. Be3 {[%clk 0:02:26.3]} 16... Rac8 {[%clk 0:01:58.1]} 17.
Rc1 {[%clk 0:02:04]} 17... Qa6 {[%clk 0:01:33.7]} 18. Nd4 {[%clk 0:01:59.6]}
18... e5 {[%clk 0:01:22.8]} 19. Ndb5 {[%clk 0:01:54.2]} 19... e4 {[%clk
0:00:59.3]} 20. a4 {[%clk 0:01:20.2]} 20... Nxa4 {[%clk 0:00:41.8]} 21. Nxa4
{[%clk 0:01:20.3]} 21... Qxb5 {[%clk 0:00:41.5]} 22. Rxc8 {[%clk 0:01:18.2]}
22... Rxc8 {[%clk 0:00:42.4]} 23. Nc3 {[%clk 0:01:18.8]} 23... Qb4 {[%clk
0:00:36]} 24. Qe1 {[%clk 0:00:42.8]} 24... a4 {[%clk 0:00:32.2]} 25. Bd2 {[%clk
0:00:39.6]} 25... Qe7 {[%clk 0:00:31.4]} 26. Nxa4 {[%clk 0:00:38.6]} 26... Nd5
{[%clk 0:00:26.1]} 27. Nc3 {[%clk 0:00:35.5]} 27... Nxc3 {[%clk 0:00:25.3]} 28.
Bxc3 {[%clk 0:00:36.2]} 28... Bxc3 {[%clk 0:00:23.8]} 29. bxc3 {[%clk
0:00:37.1]} 29... Bd5 {[%clk 0:00:22.8]} 30. e3 {[%clk 0:00:36.4]} 30... Qc5
{[%clk 0:00:21]} 31. Rc1 {[%clk 0:00:32.5]} 31... b5 {[%clk 0:00:21.2]} 32. Rb1
{[%clk 0:00:24.5]} 32... Qxc3 {[%clk 0:00:15.9]} 33. Qxc3 {[%clk 0:00:24.6]}
33... Rxc3 {[%clk 0:00:16.8]} 34. Rxb5 {[%clk 0:00:25.1]} 34... Rc1+ {[%clk
0:00:16.7]} 35. Kh2 {[%clk 0:00:25.3]} 35... Rd1 {[%clk 0:00:12.5]} 36. g4
{[%clk 0:00:23.1]} 36... Kg7 {[%clk 0:00:12.6]} 37. g5 {[%clk 0:00:20.5]} 37...
h6 {[%clk 0:00:11.5]} 38. h4 {[%clk 0:00:20.3]} 38... hxg5 {[%clk 0:00:11.4]}
39. hxg5 {[%clk 0:00:21.2]} 39... Bc4 {[%clk 0:00:10.4]} 40. Re5 {[%clk
0:00:20.5]} 40... Rd2 {[%clk 0:00:08.2]} 41. Kg3 {[%clk 0:00:20.4]} 41... Bd3
{[%clk 0:00:08.2]} 42. Bxe4 {[%clk 0:00:20.4]} 42... Bxe4 {[%clk 0:00:08.6]} 43.
Rxe4 {[%clk 0:00:21.3]} 43... Rd5 {[%clk 0:00:09.2]} 44. f4 {[%clk 0:00:21.9]}
44... Rd1 {[%clk 0:00:09.8]} 45. Rc4 {[%clk 0:00:21.1]} 45... Rg1+ {[%clk
0:00:09.5]} 46. Kf3 {[%clk 0:00:21.4]} 46... Rf1+ {[%clk 0:00:10]} 47. Ke4
{[%clk 0:00:21.9]} 47... Re1 {[%clk 0:00:10.5]} 48. Rc5 {[%clk 0:00:22]} 48...
Rd1 {[%clk 0:00:10.3]} 49. Ke5 {[%clk 0:00:22.1]} 49... Rg1 {[%clk 0:00:09.4]}
50. e4 {[%clk 0:00:22.1]} 50... Ra1 {[%clk 0:00:08]} 51. Rc6 {[%clk 0:00:20.9]}
51... Ra5+ {[%clk 0:00:07.6]} 52. Kd6 {[%clk 0:00:21.5]} 52... Ra4 {[%clk
0:00:07.4]} 53. Kd5 {[%clk 0:00:21.8]} 53... Ra5+ {[%clk 0:00:07.6]} 54. Rc5
{[%clk 0:00:22.2]} 54... Ra6 {[%clk 0:00:08.1]} 55. Kd4 {[%clk 0:00:18.2]} 55...
Ra4+ {[%clk 0:00:08]} 56. Rc4 {[%clk 0:00:18.6]} 56... Ra7 {[%clk 0:00:08.9]}
57. f5 {[%clk 0:00:17]} 57... gxf5 {[%clk 0:00:08.3]} 58. exf5 {[%clk
0:00:17.4]} 58... Ra5 {[%clk 0:00:08.9]} 59. Ke4 {[%clk 0:00:17.8]} 59... Rb5
{[%clk 0:00:09.5]} 60. Kf4 {[%clk 0:00:17.9]} 60... Ra5 {[%clk 0:00:09.6]} 61.
Kg4 {[%clk 0:00:18]} 61... Ra1 {[%clk 0:00:08.9]} 62. Kh5 {[%clk 0:00:10.1]}
62... Rh1+ {[%clk 0:00:08.5]} 63. Rh4 {[%clk 0:00:10.5]} 63... Ra1 {[%clk
0:00:06.8]} 64. f6+ {[%clk 0:00:10.5]} 64... Kg8 {[%clk 0:00:07]} 65. Rc4 {[%clk
0:00:08.4]} 65... Rh1+ {[%clk 0:00:06.8]} 66. Kg4 {[%clk 0:00:08.7]} 66... Rg1+
{[%clk 0:00:07.3]} 67. Kf5 {[%clk 0:00:09.2]} 67... Rf1+ {[%clk 0:00:07.7]} 68.
Ke5 {[%clk 0:00:08.2]} 68... Rg1 {[%clk 0:00:06.1]} 69. Rc8+ {[%clk 0:00:06.5]}
69... Kh7 {[%clk 0:00:05.4]} 70. Kd6 {[%clk 0:00:03.1]} 70... Rxg5 {[%clk
0:00:03.3]} 71. Ke7 {[%clk 0:00:03.5]} 71... Rg1 {[%clk 0:00:02.1]} 72. Kxf7
{[%clk 0:00:03.4]} 72... Ra1 {[%clk 0:00:03]} 73. Rc7 {[%clk 0:00:03]} 73... Kh8
{[%clk 0:00:03]} 74. Ke7 {[%clk 0:00:02.9]} 74... Re1+ {[%clk 0:00:02.1]} 75.
Kf8 {[%clk 0:00:03.2]} 75... Rf1 {[%clk 0:00:01.2]} 76. f7 {[%clk 0:00:04.1]}
76... Re1 {[%clk 0:00:01.5]} 77. Rc4 {[%clk 0:00:04.6]} 1-0

[Event "*** Titled Tuesday Blitz"]
[Site "Chess.com"]
[Date "2020.11.24"]
[Round "4"]
[White "HouseOfDurin"]
[Black "Chessbard1972"]
[Result "1-0"]
[WhiteElo "2135"]
[BlackElo "2325"]
[TimeControl "180+1"]
[EndTime "10:57:44 PST"]
[Termination "HouseOfDurin won by resignation"]

1. d4 {[%clk 0:03:00.9]} 1... Nf6 {[%clk 0:02:59.1]} 2. Bg5 {[%clk 0:03:01.4]}
2... Ne4 {[%clk 0:02:58.5]} 3. h4 {[%clk 0:03:01.1]} 3... c6 {[%clk 0:02:55.8]}
4. Nd2 {[%clk 0:02:59.3]} 4... Nxg5 {[%clk 0:02:53.3]} 5. hxg5 {[%clk
0:02:58.6]} 5... d5 {[%clk 0:02:52]} 6. f4 {[%clk 0:02:56.2]} 6... Qb6 {[%clk
0:02:47.6]} 7. Nb3 {[%clk 0:02:53.2]} 7... Bf5 {[%clk 0:02:44.8]} 8. e3 {[%clk
0:02:49.4]} 8... e6 {[%clk 0:02:41.1]} 9. Bd3 {[%clk 0:02:49]} 9... Bxd3 {[%clk
0:02:36.6]} 10. Qxd3 {[%clk 0:02:49.9]} 10... Nd7 {[%clk 0:02:35.7]} 11. Rxh7
{[%clk 0:02:48.4]} 11... Rxh7 {[%clk 0:02:34.7]} 12. Qxh7 {[%clk 0:02:49.3]}
12... O-O-O {[%clk 0:02:34.2]} 13. O-O-O {[%clk 0:02:47.5]} 13... Kb8 {[%clk
0:02:33.3]} 14. Nf3 {[%clk 0:02:44.5]} 14... c5 {[%clk 0:02:27.6]} 15. c3 {[%clk
0:02:34.9]} 15... Rc8 {[%clk 0:02:26]} 16. Kb1 {[%clk 0:02:32.1]} 16... a5
{[%clk 0:02:25.2]} 17. dxc5 {[%clk 0:01:51.9]} 17... Nxc5 {[%clk 0:02:23.4]} 18.
Nxc5 {[%clk 0:01:49.4]} 18... Qxc5 {[%clk 0:02:22]} 19. Qd3 {[%clk 0:01:46.2]}
19... f6 {[%clk 0:02:18]} 20. gxf6 {[%clk 0:01:42.5]} 20... gxf6 {[%clk
0:02:16.8]} 21. g4 {[%clk 0:01:41.5]} 21... a4 {[%clk 0:02:05.7]} 22. a3 {[%clk
0:01:41.2]} 22... Rc6 {[%clk 0:01:56]} 23. g5 {[%clk 0:01:34.1]} 23... fxg5
{[%clk 0:01:54.4]} 24. fxg5 {[%clk 0:01:34.6]} 24... Rb6 {[%clk 0:01:53.4]} 25.
Rd2 {[%clk 0:01:29.6]} 25... Bg7 {[%clk 0:01:51.9]} 26. Kc1 {[%clk 0:01:18]}
26... Rb3 {[%clk 0:01:46.7]} 27. Nd4 {[%clk 0:01:17]} 27... Rb6 {[%clk
0:01:41.7]} 28. Qg6 {[%clk 0:01:11.5]} 28... Be5 {[%clk 0:01:37]} 29. Qe8+
{[%clk 0:01:10.7]} 29... Qc8 {[%clk 0:01:33.6]} 30. Qxa4 {[%clk 0:01:06.7]}
30... Qg8 {[%clk 0:01:27]} 31. Rg2 {[%clk 0:00:58.5]} 31... Qg6 {[%clk
0:01:24.1]} 32. Qc2 {[%clk 0:00:56.6]} 32... Qg7 {[%clk 0:01:17.1]} 33. g6
{[%clk 0:00:55.5]} 33... Rd6 {[%clk 0:01:13.3]} 34. Qf2 {[%clk 0:00:52.7]} 34...
Rd7 {[%clk 0:01:09.5]} 35. Nxe6 {[%clk 0:00:49.5]} 35... Qe7 {[%clk 0:01:04.9]}
36. Qf8+ {[%clk 0:00:48.8]} 36... Qxf8 {[%clk 0:01:03.4]} 37. Nxf8 {[%clk
0:00:49.7]} 37... Rg7 {[%clk 0:01:01.6]} 38. Ne6 {[%clk 0:00:48.3]} 38... Rg8
{[%clk 0:01:00.4]} 39. g7 {[%clk 0:00:47.9]} 39... Kc8 {[%clk 0:01:00.2]} 40.
Rf2 {[%clk 0:00:46.2]} 40... Bxg7 {[%clk 0:00:53.8]} 41. Rg2 {[%clk 0:00:44.2]}
41... Re8 {[%clk 0:00:51.2]} 42. Nxg7 {[%clk 0:00:43.6]} 42... Rxe3 {[%clk
0:00:50.9]} 43. Nf5 {[%clk 0:00:43.3]} 43... Rf3 {[%clk 0:00:48.2]} 44. Nd4
{[%clk 0:00:42.2]} 44... Rf1+ {[%clk 0:00:46.9]} 45. Kc2 {[%clk 0:00:42.5]}
45... Kc7 {[%clk 0:00:45.2]} 46. Rg6 {[%clk 0:00:42.8]} 46... Kd7 {[%clk
0:00:43.1]} 47. Kb3 {[%clk 0:00:43.3]} 47... Rf2 {[%clk 0:00:42.3]} 48. a4
{[%clk 0:00:43.5]} 48... Kc7 {[%clk 0:00:41.6]} 49. Re6 {[%clk 0:00:41.4]} 49...
Kd7 {[%clk 0:00:41.3]} 50. Rb6 {[%clk 0:00:40.4]} 50... Kc7 {[%clk 0:00:41.1]}
51. Rh6 {[%clk 0:00:37.2]} 51... Rg2 {[%clk 0:00:40]} 52. Nc2 {[%clk 0:00:35.3]}
52... Rf2 {[%clk 0:00:38.1]} 53. Ne3 {[%clk 0:00:34]} 53... Rd2 {[%clk 0:00:37]}
54. Rh4 {[%clk 0:00:32.4]} 54... Kd6 {[%clk 0:00:35.4]} 55. Rd4 {[%clk
0:00:31.6]} 55... Re2 {[%clk 0:00:31.9]} 56. Nxd5 {[%clk 0:00:31.2]} 56... Kc6
{[%clk 0:00:32]} 57. Nb4+ {[%clk 0:00:30.5]} 57... Kc5 {[%clk 0:00:31.9]} 58.
Rd5+ {[%clk 0:00:29.8]} 58... Kb6 {[%clk 0:00:32]} 59. Rb5+ {[%clk 0:00:29.8]}
59... Kc7 {[%clk 0:00:31.9]} 60. Nd5+ {[%clk 0:00:29.6]} 60... Kc6 {[%clk
0:00:31.8]} 61. Nb4+ {[%clk 0:00:26.8]} 61... Kc7 {[%clk 0:00:31.2]} 62. Rh5
{[%clk 0:00:27.3]} 62... Rg2 {[%clk 0:00:29.5]} 63. a5 {[%clk 0:00:26.6]} 63...
Rf2 {[%clk 0:00:27.8]} 64. a6 {[%clk 0:00:26.3]} 64... bxa6 {[%clk 0:00:28]} 65.
Nxa6+ {[%clk 0:00:27.2]} 65... Kb6 {[%clk 0:00:27.8]} 66. Nb4 {[%clk 0:00:27.3]}
66... Kc7 {[%clk 0:00:27]} 67. Rh6 {[%clk 0:00:27]} 67... Kb7 {[%clk 0:00:25.3]}
68. Nd5 {[%clk 0:00:27.3]} 68... Rf5 {[%clk 0:00:24.1]} 69. c4 {[%clk
0:00:27.2]} 69... Rf3+ {[%clk 0:00:23.6]} 70. Kb4 {[%clk 0:00:27.4]} 70... Rf2
{[%clk 0:00:24.5]} 71. b3 {[%clk 0:00:27.9]} 71... Rf5 {[%clk 0:00:23.5]} 72.
Kc5 {[%clk 0:00:27.8]} 72... Rf3 {[%clk 0:00:22.9]} 73. b4 {[%clk 0:00:28.2]}
73... Rf5 {[%clk 0:00:22.6]} 74. b5 {[%clk 0:00:28.5]} 74... Ka7 {[%clk
0:00:22.2]} 75. Rh7+ {[%clk 0:00:28.1]} 75... Kb8 {[%clk 0:00:21.9]} 76. b6
{[%clk 0:00:27.5]} 76... Rg5 {[%clk 0:00:21]} 77. Kb5 {[%clk 0:00:26.2]} 77...
Kc8 {[%clk 0:00:19.1]} 78. Rc7+ {[%clk 0:00:24.7]} 78... Kb8 {[%clk 0:00:18.1]}
79. Re7 {[%clk 0:00:23.7]} 79... Kc8 {[%clk 0:00:16.9]} 80. Re4 {[%clk
0:00:20.2]} 80... Kb7 {[%clk 0:00:15.2]} 81. Re7+ {[%clk 0:00:19.3]} 81... Kc8
{[%clk 0:00:14.9]} 82. Kc5 {[%clk 0:00:19.8]} 82... Kb8 {[%clk 0:00:14]} 83. b7
{[%clk 0:00:19.1]} 83... Ka7 {[%clk 0:00:11.6]} 84. Kb4 {[%clk 0:00:16.5]} 84...
Kb8 {[%clk 0:00:11.1]} 85. Nc3 {[%clk 0:00:15.2]} 85... Ka7 {[%clk 0:00:09.1]}
86. Nb5+ {[%clk 0:00:13]} 86... Kb8 {[%clk 0:00:09.1]} 87. Nd6 {[%clk
0:00:12.6]} 87... Rg8 {[%clk 0:00:03.6]} 88. Re8+ {[%clk 0:00:12.8]} 88... Rxe8
{[%clk 0:00:03.5]} 89. Nxe8 {[%clk 0:00:13.7]} 89... Kxb7 {[%clk 0:00:04.1]} 90.
Nf6 {[%clk 0:00:13.8]} 90... Kc6 {[%clk 0:00:04.1]} 91. c5 {[%clk 0:00:14.4]}
91... Kc7 {[%clk 0:00:03.9]} 92. Kb5 {[%clk 0:00:14.8]} 92... Kb7 {[%clk
0:00:04.8]} 93. c6+ {[%clk 0:00:15.5]} 93... Kc7 {[%clk 0:00:05.7]} 94. Kc5
{[%clk 0:00:16.1]} 94... Kc8 {[%clk 0:00:05.9]} 95. Kb6 {[%clk 0:00:16.3]} 95...
Kd8 {[%clk 0:00:06]} 96. Ne4 {[%clk 0:00:16.6]} 96... Kc8 {[%clk 0:00:06]} 97.
c7 {[%clk 0:00:16.7]} 97... Kd7 {[%clk 0:00:05.1]} 98. Kb7 {[%clk 0:00:16.8]}
98... Ke6 {[%clk 0:00:06]} 99. c8=Q+ {[%clk 0:00:16.9]} 99... Ke5 {[%clk
0:00:06.9]} 100. Qc7+ {[%clk 0:00:16.5]} 100... Kxe4 {[%clk 0:00:07.8]} 101. Qd6
{[%clk 0:00:16.5]} 1-0